{"text_format":"3","workbook":"xlsx","n_sheets":1,"sheets":["Pressão Arterial e Glicose"],"not_rendered":{"defined_names":9},"read":"whole","date_system":"1900"}

{"sheet":"Pressão Arterial e Glicose","index":0,"n_rows":13,"n_cols":11,"rows_kept":13,"merged":[[0,1,4,3],[0,4,0,9],[1,4,1,6],[1,7,1,9],[3,7,4,7],[3,8,4,8],[3,9,4,9]]}
[null,"Controlador de\nPressão Arterial e Glicose",null,null,"Personalize os valores de escala nas células E2 a J5, abaixo."]
[{"$nulls":4},"PRESSÃO ARTERIAL",null,null,"ESCALA DE GLICOSE"]
[{"$nulls":4},120,"SISTÓLICA",140,70,100,150]
[{"$nulls":4},80,"DIASTÓLICA",90,"BAIXA","NORMAL","ALTO"]
[{"$nulls":4},"PRESSÃO ALVO",null,"CHAME O MÉDICO"]
[null,"Data","Hora","Evento","Sistólica","Diastólica","Frequência Cardíaca","Glicose","Nível","Status","Anotações"]
[null,{"$f":"TODAY()","v":"2018-06-28"},"06:00:00","Ao acordar",129,79,72,55,{"$f":"PressãoArterialEGlicose[[#This Row],[Glicose]]","v":55},{"$f":"IFERROR(IF(PressãoArterialEGlicose[[#This Row],[Nível]]=0,\"\",IF(PressãoArterialEGlicose[[#This Row],[Nível]]<=GBaixo,\"BAIXA\",IF(AND(PressãoArterialEGlicose[[#This Row],[Nível]]>GBaixo,PressãoArterialEGlicose[[#This Row],[Nível]]<GAlto),\"NORMAL\",\"ALTO\"))), \"\")","v":"BAIXA"}]
[null,{"$f":"TODAY()","v":"2018-06-28"},"07:00:00","Antes da refeição",120,80,74,70,{"$f":"PressãoArterialEGlicose[[#This Row],[Glicose]]","v":70},{"$f":"IFERROR(IF(PressãoArterialEGlicose[[#This Row],[Nível]]=0,\"\",IF(PressãoArterialEGlicose[[#This Row],[Nível]]<=GBaixo,\"BAIXA\",IF(AND(PressãoArterialEGlicose[[#This Row],[Nível]]>GBaixo,PressãoArterialEGlicose[[#This Row],[Nível]]<GAlto),\"NORMAL\",\"ALTO\"))), \"\")","v":"BAIXA"}]
[null,"2018-06-28","09:00:00","Após a refeição",133,80,75,75,{"$f":"PressãoArterialEGlicose[[#This Row],[Glicose]]","v":75},{"$f":"IFERROR(IF(PressãoArterialEGlicose[[#This Row],[Nível]]=0,\"\",IF(PressãoArterialEGlicose[[#This Row],[Nível]]<=GBaixo,\"BAIXA\",IF(AND(PressãoArterialEGlicose[[#This Row],[Nível]]>GBaixo,PressãoArterialEGlicose[[#This Row],[Nível]]<GAlto),\"NORMAL\",\"ALTO\"))), \"\")","v":"NORMAL"}]
[null,"2018-06-28","10:00:00","Somente PA",143,91,75,190,{"$f":"PressãoArterialEGlicose[[#This Row],[Glicose]]","v":190},{"$f":"IFERROR(IF(PressãoArterialEGlicose[[#This Row],[Nível]]=0,\"\",IF(PressãoArterialEGlicose[[#This Row],[Nível]]<=GBaixo,\"BAIXA\",IF(AND(PressãoArterialEGlicose[[#This Row],[Nível]]>GBaixo,PressãoArterialEGlicose[[#This Row],[Nível]]<GAlto),\"NORMAL\",\"ALTO\"))), \"\")","v":"ALTO"}]
[null,"2018-06-28","12:00:00","Antes da refeição",141,84,70,140,{"$f":"PressãoArterialEGlicose[[#This Row],[Glicose]]","v":140},{"$f":"IFERROR(IF(PressãoArterialEGlicose[[#This Row],[Nível]]=0,\"\",IF(PressãoArterialEGlicose[[#This Row],[Nível]]<=GBaixo,\"BAIXA\",IF(AND(PressãoArterialEGlicose[[#This Row],[Nível]]>GBaixo,PressãoArterialEGlicose[[#This Row],[Nível]]<GAlto),\"NORMAL\",\"ALTO\"))), \"\")","v":"NORMAL"}]
[null,{"$f":"TODAY()","v":"2018-06-28"},"15:00:00","Após a refeição",132,80,68,90,{"$f":"PressãoArterialEGlicose[[#This Row],[Glicose]]","v":90},{"$f":"IFERROR(IF(PressãoArterialEGlicose[[#This Row],[Nível]]=0,\"\",IF(PressãoArterialEGlicose[[#This Row],[Nível]]<=GBaixo,\"BAIXA\",IF(AND(PressãoArterialEGlicose[[#This Row],[Nível]]>GBaixo,PressãoArterialEGlicose[[#This Row],[Nível]]<GAlto),\"NORMAL\",\"ALTO\"))), \"\")","v":"NORMAL"},"Tomou medicação para pressão durante a refeição"]
[null,"Médias",null,null,{"$f":"SUBTOTAL(101,PressãoArterialEGlicose[Sistólica])","v":133},{"$f":"SUBTOTAL(101,PressãoArterialEGlicose[Diastólica])","v":{"v":82.33333333333333,"d":"82"}},{"$f":"SUBTOTAL(101,PressãoArterialEGlicose[Frequência Cardíaca])","v":{"v":72.33333333333333,"d":"72"}},{"$f":"SUBTOTAL(101,PressãoArterialEGlicose[Glicose])","v":{"v":103.33333333333333,"d":"103"}}]